{"text_format":"1","workbook":"xlsx","n_sheets":1,"sheets":["Сводная"],"not_rendered":{"charts":0,"images":0,"macros":1,"external_links":1,"defined_names":97,"comments":1,"pivot_tables":0},"unopened":[],"bounds":{"document_bytes":16777216,"sheet_cells":100000,"rows_first":2000,"rows_last":500,"rows_between":2000,"halvings":0,"cell_chars":16384,"cell_head_chars":4096},"cells_cut":0,"cells_raw":0,"read":"whole","date_system":"1900"}

{"sheet":"Сводная","index":0,"n_rows":50,"n_cols":216,"rows_kept":50,"cut":false,"hidden":false,"merged":[]}
[{"$f":"LastRow(A:A)","v":50}]
[]
["Наименование элемента","Категория 1 уровня","Категория 2 уровня","Категория 3 уровня","Валюта для Розничной цены","Розничная цена, руб.","Общее кол-во на складе","Разрешить покупку при отсутвии товара","НДС включен в цену ?","Наши предложения (OFFERS)","Р","Производитель (ATT_BRAND)","Родина бренда (PRODUCER)","Страна производитель (COUNTRY)","Р","Р","ID товара на сайте","Сопутствующие товары (RELATED_PRODUCT)","Похожие товары (SIMILAR_PRODUCT)","Р","Артикул (CML2_ARTICLE)","Тип прибора","P","В списке Госреестра","P","Р","Дальность обнаружения (заводская), метр","Дальность обнаружения (оптический расчет), метр","Формула для проверки дальности","Формула для проверки угла обзора","Р","Производитель матрицы","Тип матрицы","Разрешение матрицы, пикс","Размер пикселя матрицы, мкм","Температурный диапазон измерения, °C","Термочувствительность (NETD), °C","Частота смены кадров, Гц","Цветность отображения горячего","Способ калибровки","Пространственное разрешение (IFOV), мрад","Точность измерений, °C","Р","Р","Разрешение ПЗС матрицы, пикс","Разрешение ПЗС матрицы, штр/мм","Цвет изображения ПЗС матрицы","Р","Р","Поколение ЭОП","Марка ЭОП","Производитель ЭОП","Разрешение ЭОП, штр/мм","Чувствительность ЭОП, мкА/лм","Усиления света ЭОП, отн.ед.","Цвет изображения ЭОП","Р","Р","Ночная ИК подсветка","Дистанция ИК подсветки, метр.","Длина волны ИК-осветителя, нм","Тип ИК осветителя","Мощность ИК (градации), мВт","Р","Р","Объектив, мм/f","Оптическое увеличение, крат","Цифровое увеличение, крат","Угол зрения по горизонту, град.","Мин. фокусное расстояние, метр","Фокусировка","Озотозаполненность оптики","Сменный объектив","Р","Р","Тип дисплея","Разрешение дисплея, пикс","Сенсорный экран","Р","Р","Фотозапись","Видеозапись","Автоматическая активация видеозаписи","Хранение изображений","Способ передачи изображений","Способ трансляции в реальном времени","Дистанционное управление","Встроенный Wi-Fi","Беспроводная совместимость своих приборов","Микрофон","Динамик","Встроенная цифровая камера","Р","Р","Дальномер","Дальность дальномера, метр","Способ передачи информации","Р","Баллистический калькулятор","Авто сдвиг прицельной сетки","Угол завала","Память пристрелки","Пристрелка одним выстрелом","Р","Р","Р","Р","Обновление ПО прибора","Детектор движения","Датчик температуры","Акселерометр","Датчик влажности","Светодиодная подсветка (фонарик)","Лазерный целеуказатель","Геотекинг/GPS","Электронный компас","Электронный угломер","Гироскоп","Магнитометр","Электронный барометр","Р","Р","Р","Р","Удаление выходного зрачка , мм","Поворотно-наклонный механизм","Гиростабилизация","Время включения прибоа, сек","Возможность установки на штатив","Время работы от своих батарей, час","Возможность использовать доп. источник питания","Размеры прибора ДЛИНА, мм","Размеры прибора ШИРИНА, мм","Размеры прибора ВЫСОТА, мм","Вес прибора, грамм","Температура эксплуатации, °С","Водо- и пыленепроницаемость (IP)","Устойчивость к падению на бетон, метр","Планка Weaver на корпусе для доп.аксессуаров","Язык меню прибора","Срок гарантии (xls_srok_garantii)","Р","P","Р","Р","Р","Показать в меню (SHOW_MENU)","Дополнительные услуги (SERVICES)","Коллекции (COLLECTION)","Уникальные черты","Р","Р","Р","Р","Р","Р","Р","Р","Специальное предложение (PRODUCT_DAY)","Таймер (однократно) до (TIMER_DATE)"," Дата обратного отсчета для таймера в цикле (TIMER_START_DATE)","Таймер обратного отсчета в цикле на дней (TIMER_LOOP)","Р","Рейтинг (RATING)","Количество проголосовавших (VOTE_COUNT)","Сумма оценок (VOTE_SUM)","Количество комментариев (BLOG_COMMENTS_CNT)","Р","ym_typePrefix (TYPEPREFIX)","ЯМ - Категория (ym_market_category)","ЯМ - Информация (ym_sales_notes)","ЯМ - выгрузка (YML)","Код товара на Яндекс.Маркет (TURBO_YANDEX_LINK)","TURBO_YANDEX_STATUS","Р","Картинка анонса","Детальная картинка","Дополнительное фото (MORE_PHOTO)","Детальное описание","Видеообзоры (VIDEO)","Документация (FILES)","Р","Шаблон META TITLE (вставка)","Шаблон META DESCRIPTION (вставка)","Шаблон META KEYWORDS (вставка)","Описание анонса (вставка)","ТЕГИ (xls_tegi)","Шаблон ALT для картинки анонса","Шаблон TITLE для картинки анонса","Шаблон имени файла для картинки анонса","Шаблон ALT для детальной картинки","Шаблон TITLE для детальной картинки","Шаблон имени файла для детальной картинки","P","Р",null,null,null,null,null,null,null,null,null,null,null,"Р","Р","Закупочная цена","Закупочная цена (валюта)","РРЦ (Поставщик)","По курсу $/€, руб.","Коэф-нт, низ/вверх","Валюта для Розничной цены","Розничная цена, руб.","Проверка цен было/стало"]
["Не более 255 знаков =ДЛСТР(ссылка ячейка)","1 1",null,null,null,null,null,null,null,null,null,null,"Страна, которой принадлежит бренд","Страна производства прибора",null,null,null,null,null,null,null,null,null,"Прибор, прошедший все необходимые проверки и соответсвует всем нормативам и правилам, которые установлены для данной категории товаров",null,null,"Способность обнаружить цель размером с человека (1,8м*0,5м) в 1,5-3 пиксела на экране при определенных погодных показателях влажности, давления и температуры.  Если обнаружение 1000м/распознование (человек/машина) 500м/идентификация (мужчина/женщина) 170м","Единый стандарт рассчета. Математически рассчитанная дальность обнаружения для человека ростом 170 см и отображение на тепловизионной матрице в 2 пикселя. Так же зависит от вертикального размера матрицы и горизонтального угла обзора",null,null,null,null,"Аморфный кремний (a-Si) и Оксид ванадия (VOx) - материалы, которые используют для изготовления неохлаждаемых матриц в фокальной плоскости (FPA)","Количество пикселей на матрице. Чем их больше, тем выше детализация изображения","Чем меньше пиксель, тем выше детализация. Но, меньший пиксель более чувствителен к дрожанию рук","Диапазон температур, для которых предназначен тепловизор. При выходе из диапазона измерения тепловизор становится бесполезным","Температура минимальной отображаемоей разницы. Чем меньше показатель, тем более понятен объект наблюдения.","Чем выше частота обновления кадра, тем более плавным будет отображение динамичных сцен","Цветовые схемы применяются для удобства наблюдения в различных условиях. Особенно в электроэнергетике, где необходимо найти перегретые или неисправные элементы","Калибровка матрицы может происходить двумя способами: механически (шторками) и электронно (бесшумно)","iFov – это угол поля зрения, который приходится на один пиксель, измеряется в мрадиан. Например значение 3,5 мрад значит - что один пиксель на матрице тепловизора равен 3,5мм высоты/ширины объекта на расстоянии одного метра.","Обычно погрешность измерения тепловизоров не превышает 2% от полученного результата",null,null,"Количество пикселей на матрице. Чем их больше, тем выше детализация изображения","Способность ПНВ различать два близко расположенных объекта измеряется в штрихах на миллиметр. Чем больше величина, указанная в штрихах на миллиметр, тем более мелкие детали различает ПНВ. Хорошую картинку дает разрешение начиная от 42 штр/мм","Возможность отображения картинки в разных цветах: черно-белый, зеленый или цветной",null,null,"Чем выше поколение ЭОП, тем больше чувствительность к свету, увеличение дистанции обнаружения и выше разрешение изображения",null,null,"Способность ПНВ различать два близко расположенных объекта измеряется в штрихах на миллиметр. Чем больше величина, указанная в штрихах на миллиметр, тем более мелкие детали различает ПНВ. Хорошую картинку дает разрешение начиная от 42 штр/мм","Чем выше поколение ЭОП, тем выше чувствительность фотокатода, а значит увеличивается яркость изображения","Характеризует усиление попадающего в ЭОП света, относительно исходящего из него. Чем больше этот коэффициент, тем лучше отображаются объекты в поле зрения","ЭОП предлагает 2 варианта спектрального изображения - в зеленом или черно-белом цвете. Черно-белый вариант дает больший комфорт и снижает напряжение глаз, а желто-зеленый спектр люминофора дает прирост в дальности наблюдения",null,null,"Дает дополнительное уселение света, когда естественных источников (луна, звезды) становится недостаточно","Дистанция зависит от мощности осветителя и может достигать 1 км","Для ЭОП 1,2 поколений хорошо подходят фонари с длиной волны до 900 нм, свыше 900 нм (невидимый диапазон) для 3 поколения и цифровых приборов","Может быть лазерным или диодным. Диодный осветитель безопасен для глаз и дает более равномерное поле свечения","Чем выше мощность ИК фонаря, тем дальше он видит",null,null,"Две важные характеристики объектива: фокусное расстояние, от которого зависит оптическое увеличение и дистанция; и диафрагма F - чем меньше этот показатель, тем больше света попадает на матрицу, что напрямую сказывается на качестве изображения в лучшую сторону","Чем больше этот показатель, тем сильнее увеличение без потери качества","Увеличение происходит програмным способом, т.е. берется центральная часть изображения и растягивается на весь экран. Чем больше цифровой зум, тем сильнее искажение получаем на выходе","Это та часть пространства, которую может охватить объектив. Угол поля зрения объектива обратно пропорционален фокусному расстоянию объектива. Чем меньше оптическое увеличение объектива, тем шире он видит","Это то минимальное расстояние, на которое может сфокусироваться объектив. Чем больше оптическое увеличение объектива, тем больше минимальное расстояние фокусировки","Фокусировка объектива может происходить как в автоматическом режиме, так и в ручном, а также в полуавтоматическом, т.е. прибор фокусируется сам, но при участии пользователя","Озот, которым заполняется внутренности оптики (а также корпуса), что предотвращает запотевание при резкой смене температуры","Возможность замены объектива на другой самостоятельно",null,null,"Технология, по которой построен дисплей прибора","Чем выше разрешение экрана, тем лучше качество отображаемой информации",null,null,null,"Возможность фотографировать изображение находящееся в поле зрения объектива и сохранять во внутреннюю память, либо на внешнее устройство (если прибор поддерживает данную функцию)","Возможность записывать видео-изображение находящееся в поле зрения объектива и сохранять во внутреннюю память, либо на внешнее устройство (если прибор поддерживает данную функцию)","Обычно эта функция устанавливается на прицелы и автоматически активируется перед выстрелом, чтобы пользователь мог запечатлить самый интересный момент охоты ",null,"Зависит от функционала прибора. Передача файлов может проходить по разным протоколам (Wi-Fi, Bluetooth), а также проводным способом (USB, HDMI)","Способ и способность прибора передать картинку в режиме реального времени","Возможность управления основными функциями прибора удаленно, посредством дистанционого пульта или мобильного устройства","Беспроводная передача информации, либо управление прибором","При поддержке этой функции приборы могут \"общаться\" между собой. Например: тепловизор может получить дополнительную информацию от токоизмерительных клещей по беспроводному каналу передачи данных (обычно это приборы одного производителя)","Запись звука, может использоваться в работах на объекте,  например, записать комментарий к полученным тепловизионным измерениям","Возможность воспроизводить звук с прибора, например, прослушать анотацию к тепловизионному изображению без необходимости подключения к ПК или мобильному устройству","Встроенная цифровая камера видимого спектра, обычно устанавливается в строительные тепловизоры",null,null,"Лазерные дальномеры используются для определения дистанции до объекта в условиях прямой видимости, точность как правило высокая. Дальномерная шкала дает приблизительную оценку дистанции и возможны большие погрешности.","Максимальная дистанция, которую способен измерить дальномер",null,null,"Применяется для расчета траектории полета пули. С его помощью можно рассчитать предварительные данные для пристрелки оружия и поправки с учётом разных дистанций и углов стрельбы",null,null,"Возможность пристрелки одного прицела на разные дистанции/патроны/оружие с сохранением всех показателей. При этом не придется настраивать прицел по новой",null,null,null,null,null,null,null,"Способность отображать на экране прибора минимальную/максимальную, а также среднюю температуры в поле зрения тепловизора","Позволяет определять ориентацию прибора относительно горизонта - угол оси наблюдения относительно горизонта и угол крена.","Обычно устанавливается на строительные тепловизоры и влагометры, полезен для ремонтных работ","Для удобства, в условиях недостаточной видимости","Для удобства нацеливания на конкретный объект при измерении температуры или совершении выстрела","Позволяет определить собственные географические координаты наблюдателя. Погрешность определения координат зависит от количества спутников, с которыми установлена связь, уровня сигнала и мешающих факторов. На открытой местности погрешность более точная.","Позволяет определить ориентацию вектора магнитного поля земли и вычислить магнитный азимут направления наблюдения.","Помогает контролировать острые и развёрнутые углы с самыми разными градусами. Он необходим не только на стадии монтажа, так как даёт много возможностей при создании планов и чертежей, а также при проведении диагностики пространственных систем","Датчик гироскопа передает данные об угле наклона прибора по отношению к земной поверхности","Датчик для измерения характеристик магнитного поля и магнитных свойств материалов","Датчик для измерения атмосферного давления",null,null,null,null,null,"Гибкая система креплений, которая позволяет точно пазиционировать положение камеры в пространтстве","Это поддержание прибора в нужном положении с помощью гироскопов, например, при качке на корабле","Время с нажатия на кнопку питания до полной загрузки операционной системы","Специальное отверстие (разъем) на корпусе прибора",null,"Наличие специального разъема на корпусе прибора для подключения внешней переферии",null,null,null,null,null,"Класс защиты прибора, который говорит о том, что устройство способно переносить суровые условия эксплуатации, такие как: вода, пыль, грязь, вибрационные нагрузки, падения, удары и т.д.",null,"Специальное крепление на корпусе прибора для установки дополнительного оборудования (ИК-фонарь, блок питания, видеорекордер и т.д.)"]
["Наименование элемента","Категория 1 уровня","Категория 2 уровня","Категория 3 уровня","RUB",269900,10,null,null,null,null,null,null,null,null,null,null,null,null,null,null,null,null,null,null,null,null,null,null,null,null,null,null,null,null,null,null,null,null,null,null,null,null,null,null,null,null,null,null,null,null,null,null,null,null,null,null,null,null,null,null,null,null,null,null,null,null,null,null,null,null,null,null,null,null,null,null,null,null,null,null,null,null,null,null,null,null,null,null,null,null,null,null,null,null,null,null,null,null,null,null,null,null,null,null,null,null,null,null,null,null,null,null,null,null,null,null,null,null,null,null,null,null,null,null,null,null,null,null,null,null,null,null,null,null,null,null,null,null,null,null,null,null,null,null,null,null,null,null,null,null,null,null,null,null,null,null,null,null,null,null,null,null,null,null,null,null,null,null,null,null,null,null,null,null,null,null,null,null,null,null,null,null,null,null,null,null,null,null,null,null,null,null,null,null,null,null,null,null,null,null,null,null,null,null,null,null,null,null,null,269900,null,1,"RUB",{"$f":"IF(HC5*HE5<=0,\"-\",HC5*HE5)","v":269900},{"$f":"HG5-F5","v":0}]
["Наименование элемента","Категория 1 уровня","Категория 2 уровня","Категория 3 уровня","RUB",239900,10,null,null,null,null,null,null,null,null,null,null,null,null,null,null,null,null,null,null,null,null,null,null,null,null,null,null,null,null,null,null,null,null,null,null,null,null,null,null,null,null,null,null,null,null,null,null,null,null,null,null,null,null,null,null,null,null,null,null,null,null,null,null,null,null,null,null,null,null,null,null,null,null,null,null,null,null,null,null,null,null,null,null,null,null,null,null,null,null,null,null,null,null,null,null,null,null,null,null,null,null,null,null,null,null,null,null,null,null,null,null,null,null,null,null,null,null,null,null,null,null,null,null,null,null,null,null,null,null,null,null,null,null,null,null,null,null,null,null,null,null,null,null,null,null,null,null,null,null,null,null,null,null,null,null,null,null,null,null,null,null,null,null,null,null,null,null,null,null,null,null,null,null,null,null,null,null,null,null,null,null,null,null,null,null,null,null,null,null,null,null,null,null,null,null,null,null,null,null,null,null,null,null,null,239900,null,1,"RUB",{"$f":"IF(HC6*HE6<=0,\"-\",HC6*HE6)","v":239900},0]
["Наименование элемента","Категория 1 уровня","Категория 2 уровня","Категория 3 уровня","RUB",209900,10,null,null,null,null,null,null,null,null,null,null,null,null,null,null,null,null,null,null,null,null,null,null,null,null,null,null,null,null,null,null,null,null,null,null,null,null,null,null,null,null,null,null,null,null,null,null,null,null,null,null,null,null,null,null,null,null,null,null,null,null,null,null,null,null,null,null,null,null,null,null,null,null,null,null,null,null,null,null,null,null,null,null,null,null,null,null,null,null,null,null,null,null,null,null,null,null,null,null,null,null,null,null,null,null,null,null,null,null,null,null,null,null,null,null,null,null,null,null,null,null,null,null,null,null,null,null,null,null,null,null,null,null,null,null,null,null,null,null,null,null,null,null,null,null,null,null,null,null,null,null,null,null,null,null,null,null,null,null,null,null,null,null,null,null,null,null,null,null,null,null,null,null,null,null,null,null,null,null,null,null,null,null,null,null,null,null,null,null,null,null,null,null,null,null,null,null,null,null,null,null,null,null,null,209900,null,1,"RUB",{"$f":"IF(HC7*HE7<=0,\"-\",HC7*HE7)","v":209900},0]
["Наименование элемента","Категория 1 уровня","Категория 2 уровня","Категория 3 уровня","RUB",189900,10,null,null,null,null,null,null,null,null,null,null,null,null,null,null,null,null,null,null,null,null,null,null,null,null,null,null,null,null,null,null,null,null,null,null,null,null,null,null,null,null,null,null,null,null,null,null,null,null,null,null,null,null,null,null,null,null,null,null,null,null,null,null,null,null,null,null,null,null,null,null,null,null,null,null,null,null,null,null,null,null,null,null,null,null,null,null,null,null,null,null,null,null,null,null,null,null,null,null,null,null,null,null,null,null,null,null,null,null,null,null,null,null,null,null,null,null,null,null,null,null,null,null,null,null,null,null,null,null,null,null,null,null,null,null,null,null,null,null,null,null,null,null,null,null,null,null,null,null,null,null,null,null,null,null,null,null,null,null,null,null,null,null,null,null,null,null,null,null,null,null,null,null,null,null,null,null,null,null,null,null,null,null,null,null,null,null,null,null,null,null,null,null,null,null,null,null,null,null,null,null,null,null,null,189900,null,1,"RUB",189900,0]
["Наименование элемента","Категория 1 уровня","Категория 2 уровня","Категория 3 уровня","RUB",159900,10,null,null,null,null,null,null,null,null,null,null,null,null,null,null,null,null,null,null,null,null,null,null,null,null,null,null,null,null,null,null,null,null,null,null,null,null,null,null,null,null,null,null,null,null,null,null,null,null,null,null,null,null,null,null,null,null,null,null,null,null,null,null,null,null,null,null,null,null,null,null,null,null,null,null,null,null,null,null,null,null,null,null,null,null,null,null,null,null,null,null,null,null,null,null,null,null,null,null,null,null,null,null,null,null,null,null,null,null,null,null,null,null,null,null,null,null,null,null,null,null,null,null,null,null,null,null,null,null,null,null,null,null,null,null,null,null,null,null,null,null,null,null,null,null,null,null,null,null,null,null,null,null,null,null,null,null,null,null,null,null,null,null,null,null,null,null,null,null,null,null,null,null,null,null,null,null,null,null,null,null,null,null,null,null,null,null,null,null,null,null,null,null,null,null,null,null,null,null,null,null,null,null,null,159900,null,1,"RUB",159900,0]
["Наименование элемента","Категория 1 уровня","Категория 2 уровня","Категория 3 уровня","RUB",129900,10,null,null,null,null,null,null,null,null,null,null,null,null,null,null,null,null,null,null,null,null,null,null,null,null,null,null,null,null,null,null,null,null,null,null,null,null,null,null,null,null,null,null,null,null,null,null,null,null,null,null,null,null,null,null,null,null,null,null,null,null,null,null,null,null,null,null,null,null,null,null,null,null,null,null,null,null,null,null,null,null,null,null,null,null,null,null,null,null,null,null,null,null,null,null,null,null,null,null,null,null,null,null,null,null,null,null,null,null,null,null,null,null,null,null,null,null,null,null,null,null,null,null,null,null,null,null,null,null,null,null,null,null,null,null,null,null,null,null,null,null,null,null,null,null,null,null,null,null,null,null,null,null,null,null,null,null,null,null,null,null,null,null,null,null,null,null,null,null,null,null,null,null,null,null,null,null,null,null,null,null,null,null,null,null,null,null,null,null,null,null,null,null,null,null,null,null,null,null,null,null,null,null,null,129900,null,1,"RUB",129900,0]
["Наименование элемента","Категория 1 уровня","Категория 2 уровня","Категория 3 уровня","RUB",119000,10,null,null,null,null,null,null,null,null,null,null,null,null,null,null,null,null,null,null,null,null,null,null,null,null,null,null,null,null,null,null,null,null,null,null,null,null,null,null,null,null,null,null,null,null,null,null,null,null,null,null,null,null,null,null,null,null,null,null,null,null,null,null,null,null,null,null,null,null,null,null,null,null,null,null,null,null,null,null,null,null,null,null,null,null,null,null,null,null,null,null,null,null,null,null,null,null,null,null,null,null,null,null,null,null,null,null,null,null,null,null,null,null,null,null,null,null,null,null,null,null,null,null,null,null,null,null,null,null,null,null,null,null,null,null,null,null,null,null,null,null,null,null,null,null,null,null,null,null,null,null,null,null,null,null,null,null,null,null,null,null,null,null,null,null,null,null,null,null,null,null,null,null,null,null,null,null,null,null,null,null,null,null,null,null,null,null,null,null,null,null,null,null,null,null,null,null,null,null,null,null,null,null,null,119000,null,1,"RUB",119000,0]
["Наименование элемента","Категория 1 уровня","Категория 2 уровня","Категория 3 уровня","RUB",85900,10,null,null,null,null,null,null,null,null,null,null,null,null,null,null,null,null,null,null,null,null,null,null,null,null,null,null,null,null,null,null,null,null,null,null,null,null,null,null,null,null,null,null,null,null,null,null,null,null,null,null,null,null,null,null,null,null,null,null,null,null,null,null,null,null,null,null,null,null,null,null,null,null,null,null,null,null,null,null,null,null,null,null,null,null,null,null,null,null,null,null,null,null,null,null,null,null,null,null,null,null,null,null,null,null,null,null,null,null,null,null,null,null,null,null,null,null,null,null,null,null,null,null,null,null,null,null,null,null,null,null,null,null,null,null,null,null,null,null,null,null,null,null,null,null,null,null,null,null,null,null,null,null,null,null,null,null,null,null,null,null,null,null,null,null,null,null,null,null,null,null,null,null,null,null,null,null,null,null,null,null,null,null,null,null,null,null,null,null,null,null,null,null,null,null,null,null,null,null,null,null,null,null,null,85900,null,1,"RUB",85900,0]
["Наименование элемента","Категория 1 уровня","Категория 2 уровня","Категория 3 уровня","RUB",96900,10,null,null,null,null,null,null,null,null,null,null,null,null,null,null,null,null,null,null,null,null,null,null,null,null,null,null,null,null,null,null,null,null,null,null,null,null,null,null,null,null,null,null,null,null,null,null,null,null,null,null,null,null,null,null,null,null,null,null,null,null,null,null,null,null,null,null,null,null,null,null,null,null,null,null,null,null,null,null,null,null,null,null,null,null,null,null,null,null,null,null,null,null,null,null,null,null,null,null,null,null,null,null,null,null,null,null,null,null,null,null,null,null,null,null,null,null,null,null,null,null,null,null,null,null,null,null,null,null,null,null,null,null,null,null,null,null,null,null,null,null,null,null,null,null,null,null,null,null,null,null,null,null,null,null,null,null,null,null,null,null,null,null,null,null,null,null,null,null,null,null,null,null,null,null,null,null,null,null,null,null,null,null,null,null,null,null,null,null,null,null,null,null,null,null,null,null,null,null,null,null,null,null,null,96900,null,1,"RUB",96900,0]
["Наименование элемента","Категория 1 уровня","Категория 2 уровня","Категория 3 уровня","RUB",499000,0,"Нет",null,null,null,null,null,null,null,null,null,null,null,null,null,null,null,null,null,null,null,null,null,null,null,null,null,null,null,null,null,null,null,null,null,null,null,null,null,null,null,null,null,null,null,null,null,null,null,null,null,null,null,null,null,null,null,null,null,null,null,null,null,null,null,null,null,null,null,null,null,null,null,null,null,null,null,null,null,null,null,null,null,null,null,null,null,null,null,null,null,null,null,null,null,null,null,null,null,null,null,null,null,null,null,null,null,null,null,null,null,null,null,null,null,null,null,null,null,null,null,null,null,null,null,null,null,null,null,null,null,null,null,null,null,null,null,null,null,null,null,null,null,null,null,null,null,null,null,null,null,null,null,null,null,null,null,null,null,null,null,null,null,null,null,null,null,null,null,null,null,null,null,null,null,null,null,null,null,null,null,null,null,null,null,null,null,null,null,null,null,null,null,null,null,null,null,null,null,null,null,null,null,null,499000,null,1,"RUB",499000,0]
["Наименование элемента","Категория 1 уровня","Категория 2 уровня","Категория 3 уровня","RUB","-",0,"Нет",null,null,null,null,null,null,null,null,null,null,null,null,null,null,null,null,null,null,null,null,null,null,null,null,null,null,null,null,null,null,null,null,null,null,null,null,null,null,null,null,null,null,null,null,null,null,null,null,null,null,null,null,null,null,null,null,null,null,null,null,null,null,null,null,null,null,null,null,null,null,null,null,null,null,null,null,null,null,null,null,null,null,null,null,null,null,null,null,null,null,null,null,null,null,null,null,null,null,null,null,null,null,null,null,null,null,null,null,null,null,null,null,null,null,null,null,null,null,null,null,null,null,null,null,null,null,null,null,null,null,null,null,null,null,null,null,null,null,null,null,null,null,null,null,null,null,null,null,null,null,null,null,null,null,null,null,null,null,null,null,null,null,null,null,null,null,null,null,null,null,null,null,null,null,null,null,null,null,null,null,null,null,null,null,null,null,null,null,null,null,null,null,null,null,null,null,null,null,null,null,null,null,0,null,1,"RUB","-",{"$error":"#VALUE!"}]
["Наименование элемента","Категория 1 уровня","Категория 2 уровня","Категория 3 уровня","RUB","-",0,"Нет",null,null,null,null,null,null,null,null,null,null,null,null,null,null,null,null,null,null,null,null,null,null,null,null,null,null,null,null,null,null,null,null,null,null,null,null,null,null,null,null,null,null,null,null,null,null,null,null,null,null,null,null,null,null,null,null,null,null,null,null,null,null,null,null,null,null,null,null,null,null,null,null,null,null,null,null,null,null,null,null,null,null,null,null,null,null,null,null,null,null,null,null,null,null,null,null,null,null,null,null,null,null,null,null,null,null,null,null,null,null,null,null,null,null,null,null,null,null,null,null,null,null,null,null,null,null,null,null,null,null,null,null,null,null,null,null,null,null,null,null,null,null,null,null,null,null,null,null,null,null,null,null,null,null,null,null,null,null,null,null,null,null,null,null,null,null,null,null,null,null,null,null,null,null,null,null,null,null,null,null,null,null,null,null,null,null,null,null,null,null,null,null,null,null,null,null,null,null,null,null,null,null,0,null,1,"RUB","-",{"$error":"#VALUE!"}]
["Наименование элемента","Категория 1 уровня","Категория 2 уровня","Категория 3 уровня","RUB",359000,0,"Нет",null,null,null,null,null,null,null,null,null,null,null,null,null,null,null,null,null,null,null,null,null,null,null,null,null,null,null,null,null,null,null,null,null,null,null,null,null,null,null,null,null,null,null,null,null,null,null,null,null,null,null,null,null,null,null,null,null,null,null,null,null,null,null,null,null,null,null,null,null,null,null,null,null,null,null,null,null,null,null,null,null,null,null,null,null,null,null,null,null,null,null,null,null,null,null,null,null,null,null,null,null,null,null,null,null,null,null,null,null,null,null,null,null,null,null,null,null,null,null,null,null,null,null,null,null,null,null,null,null,null,null,null,null,null,null,null,null,null,null,null,null,null,null,null,null,null,null,null,null,null,null,null,null,null,null,null,null,null,null,null,null,null,null,null,null,null,null,null,null,null,null,null,null,null,null,null,null,null,null,null,null,null,null,null,null,null,null,null,null,null,null,null,null,null,null,null,null,null,null,null,null,null,359000,null,1,"RUB",359000,0]
["Наименование элемента","Категория 1 уровня","Категория 2 уровня","Категория 3 уровня","RUB","-",0,"Нет",null,null,null,null,null,null,null,null,null,null,null,null,null,null,null,null,null,null,null,null,null,null,null,null,null,null,null,null,null,null,null,null,null,null,null,null,null,null,null,null,null,null,null,null,null,null,null,null,null,null,null,null,null,null,null,null,null,null,null,null,null,null,null,null,null,null,null,null,null,null,null,null,null,null,null,null,null,null,null,null,null,null,null,null,null,null,null,null,null,null,null,null,null,null,null,null,null,null,null,null,null,null,null,null,null,null,null,null,null,null,null,null,null,null,null,null,null,null,null,null,null,null,null,null,null,null,null,null,null,null,null,null,null,null,null,null,null,null,null,null,null,null,null,null,null,null,null,null,null,null,null,null,null,null,null,null,null,null,null,null,null,null,null,null,null,null,null,null,null,null,null,null,null,null,null,null,null,null,null,null,null,null,null,null,null,null,null,null,null,null,null,null,null,null,null,null,null,null,null,null,null,null,0,null,1,"RUB","-",{"$error":"#VALUE!"}]
["Наименование элемента","Категория 1 уровня","Категория 2 уровня","Категория 3 уровня","RUB","-",0,"Нет",null,null,null,null,null,null,null,null,null,null,null,null,null,null,null,null,null,null,null,null,null,null,null,null,null,null,null,null,null,null,null,null,null,null,null,null,null,null,null,null,null,null,null,null,null,null,null,null,null,null,null,null,null,null,null,null,null,null,null,null,null,null,null,null,null,null,null,null,null,null,null,null,null,null,null,null,null,null,null,null,null,null,null,null,null,null,null,null,null,null,null,null,null,null,null,null,null,null,null,null,null,null,null,null,null,null,null,null,null,null,null,null,null,null,null,null,null,null,null,null,null,null,null,null,null,null,null,null,null,null,null,null,null,null,null,null,null,null,null,null,null,null,null,null,null,null,null,null,null,null,null,null,null,null,null,null,null,null,null,null,null,null,null,null,null,null,null,null,null,null,null,null,null,null,null,null,null,null,null,null,null,null,null,null,null,null,null,null,null,null,null,null,null,null,null,null,null,null,null,null,null,null,0,null,1,"RUB","-",{"$error":"#VALUE!"}]
["Наименование элемента","Категория 1 уровня","Категория 2 уровня","Категория 3 уровня","RUB","-",0,"Нет",null,null,null,null,null,null,null,null,null,null,null,null,null,null,null,null,null,null,null,null,null,null,null,null,null,null,null,null,null,null,null,null,null,null,null,null,null,null,null,null,null,null,null,null,null,null,null,null,null,null,null,null,null,null,null,null,null,null,null,null,null,null,null,null,null,null,null,null,null,null,null,null,null,null,null,null,null,null,null,null,null,null,null,null,null,null,null,null,null,null,null,null,null,null,null,null,null,null,null,null,null,null,null,null,null,null,null,null,null,null,null,null,null,null,null,null,null,null,null,null,null,null,null,null,null,null,null,null,null,null,null,null,null,null,null,null,null,null,null,null,null,null,null,null,null,null,null,null,null,null,null,null,null,null,null,null,null,null,null,null,null,null,null,null,null,null,null,null,null,null,null,null,null,null,null,null,null,null,null,null,null,null,null,null,null,null,null,null,null,null,null,null,null,null,null,null,null,null,null,null,null,null,0,null,1,"RUB","-",{"$error":"#VALUE!"}]
["Наименование элемента","Категория 1 уровня","Категория 2 уровня","Категория 3 уровня","RUB","-",0,"Нет",null,null,null,null,null,null,null,null,null,null,null,null,null,null,null,null,null,null,null,null,null,null,null,null,null,null,null,null,null,null,null,null,null,null,null,null,null,null,null,null,null,null,null,null,null,null,null,null,null,null,null,null,null,null,null,null,null,null,null,null,null,null,null,null,null,null,null,null,null,null,null,null,null,null,null,null,null,null,null,null,null,null,null,null,null,null,null,null,null,null,null,null,null,null,null,null,null,null,null,null,null,null,null,null,null,null,null,null,null,null,null,null,null,null,null,null,null,null,null,null,null,null,null,null,null,null,null,null,null,null,null,null,null,null,null,null,null,null,null,null,null,null,null,null,null,null,null,null,null,null,null,null,null,null,null,null,null,null,null,null,null,null,null,null,null,null,null,null,null,null,null,null,null,null,null,null,null,null,null,null,null,null,null,null,null,null,null,null,null,null,null,null,null,null,null,null,null,null,null,null,null,null,0,null,1,"RUB","-",{"$error":"#VALUE!"}]
["Наименование элемента","Категория 1 уровня","Категория 2 уровня","Категория 3 уровня","RUB","-",0,"Нет",null,null,null,null,null,null,null,null,null,null,null,null,null,null,null,null,null,null,null,null,null,null,null,null,null,null,null,null,null,null,null,null,null,null,null,null,null,null,null,null,null,null,null,null,null,null,null,null,null,null,null,null,null,null,null,null,null,null,null,null,null,null,null,null,null,null,null,null,null,null,null,null,null,null,null,null,null,null,null,null,null,null,null,null,null,null,null,null,null,null,null,null,null,null,null,null,null,null,null,null,null,null,null,null,null,null,null,null,null,null,null,null,null,null,null,null,null,null,null,null,null,null,null,null,null,null,null,null,null,null,null,null,null,null,null,null,null,null,null,null,null,null,null,null,null,null,null,null,null,null,null,null,null,null,null,null,null,null,null,null,null,null,null,null,null,null,null,null,null,null,null,null,null,null,null,null,null,null,null,null,null,null,null,null,null,null,null,null,null,null,null,null,null,null,null,null,null,null,null,null,null,null,0,null,1,"RUB","-",{"$error":"#VALUE!"}]
["Наименование элемента","Категория 1 уровня","Категория 2 уровня","Категория 3 уровня","RUB","-",0,"Нет",null,null,null,null,null,null,null,null,null,null,null,null,null,null,null,null,null,null,null,null,null,null,null,null,null,null,null,null,null,null,null,null,null,null,null,null,null,null,null,null,null,null,null,null,null,null,null,null,null,null,null,null,null,null,null,null,null,null,null,null,null,null,null,null,null,null,null,null,null,null,null,null,null,null,null,null,null,null,null,null,null,null,null,null,null,null,null,null,null,null,null,null,null,null,null,null,null,null,null,null,null,null,null,null,null,null,null,null,null,null,null,null,null,null,null,null,null,null,null,null,null,null,null,null,null,null,null,null,null,null,null,null,null,null,null,null,null,null,null,null,null,null,null,null,null,null,null,null,null,null,null,null,null,null,null,null,null,null,null,null,null,null,null,null,null,null,null,null,null,null,null,null,null,null,null,null,null,null,null,null,null,null,null,null,null,null,null,null,null,null,null,null,null,null,null,null,null,null,null,null,null,null,0,null,1,"RUB","-",{"$error":"#VALUE!"}]
["Наименование элемента","Категория 1 уровня","Категория 2 уровня","Категория 3 уровня","RUB",192000,10,null,null,null,null,null,null,null,null,null,null,null,null,null,null,null,null,null,null,null,null,null,null,null,null,null,null,null,null,null,null,null,null,null,null,null,null,null,null,null,null,null,null,null,null,null,null,null,null,null,null,null,null,null,null,null,null,null,null,null,null,null,null,null,null,null,null,null,null,null,null,null,null,null,null,null,null,null,null,null,null,null,null,null,null,null,null,null,null,null,null,null,null,null,null,null,null,null,null,null,null,null,null,null,null,null,null,null,null,null,null,null,null,null,null,null,null,null,null,null,null,null,null,null,null,null,null,null,null,null,null,null,null,null,null,null,null,null,null,null,null,null,null,null,null,null,null,null,null,null,null,null,null,null,null,null,null,null,null,null,null,null,null,null,null,null,null,null,null,null,null,null,null,null,null,null,null,null,null,null,null,null,null,null,null,null,null,null,null,null,null,null,null,null,null,null,null,null,null,null,null,null,null,null,192000,null,1,"RUB",192000,0]
["Наименование элемента","Категория 1 уровня","Категория 2 уровня","Категория 3 уровня","RUB","-",0,"Нет",null,null,null,null,null,null,null,null,null,null,null,null,null,null,null,null,null,null,null,null,null,null,null,null,null,null,null,null,null,null,null,null,null,null,null,null,null,null,null,null,null,null,null,null,null,null,null,null,null,null,null,null,null,null,null,null,null,null,null,null,null,null,null,null,null,null,null,null,null,null,null,null,null,null,null,null,null,null,null,null,null,null,null,null,null,null,null,null,null,null,null,null,null,null,null,null,null,null,null,null,null,null,null,null,null,null,null,null,null,null,null,null,null,null,null,null,null,null,null,null,null,null,null,null,null,null,null,null,null,null,null,null,null,null,null,null,null,null,null,null,null,null,null,null,null,null,null,null,null,null,null,null,null,null,null,null,null,null,null,null,null,null,null,null,null,null,null,null,null,null,null,null,null,null,null,null,null,null,null,null,null,null,null,null,null,null,null,null,null,null,null,null,null,null,null,null,null,null,null,null,null,null,0,null,1,"RUB","-",{"$error":"#VALUE!"}]
["Наименование элемента","Категория 1 уровня","Категория 2 уровня","Категория 3 уровня","RUB","-",0,"Нет",null,null,null,null,null,null,null,null,null,null,null,null,null,null,null,null,null,null,null,null,null,null,null,null,null,null,null,null,null,null,null,null,null,null,null,null,null,null,null,null,null,null,null,null,null,null,null,null,null,null,null,null,null,null,null,null,null,null,null,null,null,null,null,null,null,null,null,null,null,null,null,null,null,null,null,null,null,null,null,null,null,null,null,null,null,null,null,null,null,null,null,null,null,null,null,null,null,null,null,null,null,null,null,null,null,null,null,null,null,null,null,null,null,null,null,null,null,null,null,null,null,null,null,null,null,null,null,null,null,null,null,null,null,null,null,null,null,null,null,null,null,null,null,null,null,null,null,null,null,null,null,null,null,null,null,null,null,null,null,null,null,null,null,null,null,null,null,null,null,null,null,null,null,null,null,null,null,null,null,null,null,null,null,null,null,null,null,null,null,null,null,null,null,null,null,null,null,null,null,null,null,null,0,null,1,"RUB","-",{"$error":"#VALUE!"}]
["Наименование элемента","Категория 1 уровня","Категория 2 уровня","Категория 3 уровня","RUB","-",0,null,null,null,null,null,null,null,null,null,null,null,null,null,null,null,null,null,null,null,null,null,null,null,null,null,null,null,null,null,null,null,null,null,null,null,null,null,null,null,null,null,null,null,null,null,null,null,null,null,null,null,null,null,null,null,null,null,null,null,null,null,null,null,null,null,null,null,null,null,null,null,null,null,null,null,null,null,null,null,null,null,null,null,null,null,null,null,null,null,null,null,null,null,null,null,null,null,null,null,null,null,null,null,null,null,null,null,null,null,null,null,null,null,null,null,null,null,null,null,null,null,null,null,null,null,null,null,null,null,null,null,null,null,null,null,null,null,null,null,null,null,null,null,null,null,null,null,null,null,null,null,null,null,null,null,null,null,null,null,null,null,null,null,null,null,null,null,null,null,null,null,null,null,null,null,null,null,null,null,null,null,null,null,null,null,null,null,null,null,null,null,null,null,null,null,null,null,null,null,null,null,null,null,0,null,1,"RUB","-",{"$error":"#VALUE!"}]
["Наименование элемента","Категория 1 уровня","Категория 2 уровня","Категория 3 уровня","RUB","-",0,null,null,null,null,null,null,null,null,null,null,null,null,null,null,null,null,null,null,null,null,null,null,null,null,null,null,null,null,null,null,null,null,null,null,null,null,null,null,null,null,null,null,null,null,null,null,null,null,null,null,null,null,null,null,null,null,null,null,null,null,null,null,null,null,null,null,null,null,null,null,null,null,null,null,null,null,null,null,null,null,null,null,null,null,null,null,null,null,null,null,null,null,null,null,null,null,null,null,null,null,null,null,null,null,null,null,null,null,null,null,null,null,null,null,null,null,null,null,null,null,null,null,null,null,null,null,null,null,null,null,null,null,null,null,null,null,null,null,null,null,null,null,null,null,null,null,null,null,null,null,null,null,null,null,null,null,null,null,null,null,null,null,null,null,null,null,null,null,null,null,null,null,null,null,null,null,null,null,null,null,null,null,null,null,null,null,null,null,null,null,null,null,null,null,null,null,null,null,null,null,null,null,null,0,null,1,"RUB","-",{"$error":"#VALUE!"}]
["Наименование элемента","Категория 1 уровня","Категория 2 уровня","Категория 3 уровня","RUB",49900,10,null,null,null,null,null,null,null,null,null,null,null,null,null,null,null,null,null,null,null,null,null,null,null,null,null,null,null,null,null,null,null,null,null,null,null,null,null,null,null,null,null,null,null,null,null,null,null,null,null,null,null,null,null,null,null,null,null,null,null,null,null,null,null,null,null,null,null,null,null,null,null,null,null,null,null,null,null,null,null,null,null,null,null,null,null,null,null,null,null,null,null,null,null,null,null,null,null,null,null,null,null,null,null,null,null,null,null,null,null,null,null,null,null,null,null,null,null,null,null,null,null,null,null,null,null,null,null,null,null,null,null,null,null,null,null,null,null,null,null,null,null,null,null,null,null,null,null,null,null,null,null,null,null,null,null,null,null,null,null,null,null,null,null,null,null,null,null,null,null,null,null,null,null,null,null,null,null,null,null,null,null,null,null,null,null,null,null,null,null,null,null,null,null,null,null,null,null,null,null,null,null,null,null,49900,null,1,"RUB",49900,0]
["Наименование элемента","Категория 1 уровня","Категория 2 уровня","Категория 3 уровня","RUB",118000,0,"Нет",null,null,null,null,null,null,null,null,null,null,null,null,null,null,null,null,null,null,null,null,null,null,null,null,null,null,null,null,null,null,null,null,null,null,null,null,null,null,null,null,null,null,null,null,null,null,null,null,null,null,null,null,null,null,null,null,null,null,null,null,null,null,null,null,null,null,null,null,null,null,null,null,null,null,null,null,null,null,null,null,null,null,null,null,null,null,null,null,null,null,null,null,null,null,null,null,null,null,null,null,null,null,null,null,null,null,null,null,null,null,null,null,null,null,null,null,null,null,null,null,null,null,null,null,null,null,null,null,null,null,null,null,null,null,null,null,null,null,null,null,null,null,null,null,null,null,null,null,null,null,null,null,null,null,null,null,null,null,null,null,null,null,null,null,null,null,null,null,null,null,null,null,null,null,null,null,null,null,null,null,null,null,null,null,null,null,null,null,null,null,null,null,null,null,null,null,null,null,null,null,null,null,118000,null,1,"RUB",118000,0]
["Наименование элемента","Категория 1 уровня","Категория 2 уровня","Категория 3 уровня","RUB",166000,0,"Нет",null,null,null,null,null,null,null,null,null,null,null,null,null,null,null,null,null,null,null,null,null,null,null,null,null,null,null,null,null,null,null,null,null,null,null,null,null,null,null,null,null,null,null,null,null,null,null,null,null,null,null,null,null,null,null,null,null,null,null,null,null,null,null,null,null,null,null,null,null,null,null,null,null,null,null,null,null,null,null,null,null,null,null,null,null,null,null,null,null,null,null,null,null,null,null,null,null,null,null,null,null,null,null,null,null,null,null,null,null,null,null,null,null,null,null,null,null,null,null,null,null,null,null,null,null,null,null,null,null,null,null,null,null,null,null,null,null,null,null,null,null,null,null,null,null,null,null,null,null,null,null,null,null,null,null,null,null,null,null,null,null,null,null,null,null,null,null,null,null,null,null,null,null,null,null,null,null,null,null,null,null,null,null,null,null,null,null,null,null,null,null,null,null,null,null,null,null,null,null,null,null,null,166000,null,1,"RUB",166000,0]
["Наименование элемента","Категория 1 уровня","Категория 2 уровня","Категория 3 уровня","RUB",299730,0,"Нет",null,null,null,null,null,null,null,null,null,null,null,null,null,null,null,null,null,null,null,null,null,null,null,null,null,null,null,null,null,null,null,null,null,null,null,null,null,null,null,null,null,null,null,null,null,null,null,null,null,null,null,null,null,null,null,null,null,null,null,null,null,null,null,null,null,null,null,null,null,null,null,null,null,null,null,null,null,null,null,null,null,null,null,null,null,null,null,null,null,null,null,null,null,null,null,null,null,null,null,null,null,null,null,null,null,null,null,null,null,null,null,null,null,null,null,null,null,null,null,null,null,null,null,null,null,null,null,null,null,null,null,null,null,null,null,null,null,null,null,null,null,null,null,null,null,null,null,null,null,null,null,null,null,null,null,null,null,null,null,null,null,null,null,null,null,null,null,null,null,null,null,null,null,null,null,null,null,null,null,null,null,null,null,null,null,null,null,null,null,null,null,null,null,null,null,null,null,null,null,null,null,null,299730,null,1,"RUB",299730,0]
["Наименование элемента","Категория 1 уровня","Категория 2 уровня","Категория 3 уровня","RUB",166000,0,"Нет",null,null,null,null,null,null,null,null,null,null,null,null,null,null,null,null,null,null,null,null,null,null,null,null,null,null,null,null,null,null,null,null,null,null,null,null,null,null,null,null,null,null,null,null,null,null,null,null,null,null,null,null,null,null,null,null,null,null,null,null,null,null,null,null,null,null,null,null,null,null,null,null,null,null,null,null,null,null,null,null,null,null,null,null,null,null,null,null,null,null,null,null,null,null,null,null,null,null,null,null,null,null,null,null,null,null,null,null,null,null,null,null,null,null,null,null,null,null,null,null,null,null,null,null,null,null,null,null,null,null,null,null,null,null,null,null,null,null,null,null,null,null,null,null,null,null,null,null,null,null,null,null,null,null,null,null,null,null,null,null,null,null,null,null,null,null,null,null,null,null,null,null,null,null,null,null,null,null,null,null,null,null,null,null,null,null,null,null,null,null,null,null,null,null,null,null,null,null,null,null,null,null,166000,null,1,"RUB",166000,0]
["Наименование элемента","Категория 1 уровня","Категория 2 уровня","Категория 3 уровня","RUB",280000,10,null,null,null,null,null,null,null,null,null,null,null,null,null,null,null,null,null,null,null,null,null,null,null,null,null,null,null,null,null,null,null,null,null,null,null,null,null,null,null,null,null,null,null,null,null,null,null,null,null,null,null,null,null,null,null,null,null,null,null,null,null,null,null,null,null,null,null,null,null,null,null,null,null,null,null,null,null,null,null,null,null,null,null,null,null,null,null,null,null,null,null,null,null,null,null,null,null,null,null,null,null,null,null,null,null,null,null,null,null,null,null,null,null,null,null,null,null,null,null,null,null,null,null,null,null,null,null,null,null,null,null,null,null,null,null,null,null,null,null,null,null,null,null,null,null,null,null,null,null,null,null,null,null,null,null,null,null,null,null,null,null,null,null,null,null,null,null,null,null,null,null,null,null,null,null,null,null,null,null,null,null,null,null,null,null,null,null,null,null,null,null,null,null,null,null,null,null,null,null,null,null,null,null,280000,null,1,"RUB",280000,0]
["Наименование элемента","Категория 1 уровня","Категория 2 уровня","Категория 3 уровня","RUB","-",0,"Нет",null,null,null,null,null,null,null,null,null,null,null,null,null,null,null,null,null,null,null,null,null,null,null,null,null,null,null,null,null,null,null,null,null,null,null,null,null,null,null,null,null,null,null,null,null,null,null,null,null,null,null,null,null,null,null,null,null,null,null,null,null,null,null,null,null,null,null,null,null,null,null,null,null,null,null,null,null,null,null,null,null,null,null,null,null,null,null,null,null,null,null,null,null,null,null,null,null,null,null,null,null,null,null,null,null,null,null,null,null,null,null,null,null,null,null,null,null,null,null,null,null,null,null,null,null,null,null,null,null,null,null,null,null,null,null,null,null,null,null,null,null,null,null,null,null,null,null,null,null,null,null,null,null,null,null,null,null,null,null,null,null,null,null,null,null,null,null,null,null,null,null,null,null,null,null,null,null,null,null,null,null,null,null,null,null,null,null,null,null,null,null,null,null,null,null,null,null,null,null,null,null,null,0,null,1,"RUB","-",{"$error":"#VALUE!"}]
["Наименование элемента","Категория 1 уровня","Категория 2 уровня","Категория 3 уровня","RUB","-",0,"Нет",null,null,null,null,null,null,null,null,null,null,null,null,null,null,null,null,null,null,null,null,null,null,null,null,null,null,null,null,null,null,null,null,null,null,null,null,null,null,null,null,null,null,null,null,null,null,null,null,null,null,null,null,null,null,null,null,null,null,null,null,null,null,null,null,null,null,null,null,null,null,null,null,null,null,null,null,null,null,null,null,null,null,null,null,null,null,null,null,null,null,null,null,null,null,null,null,null,null,null,null,null,null,null,null,null,null,null,null,null,null,null,null,null,null,null,null,null,null,null,null,null,null,null,null,null,null,null,null,null,null,null,null,null,null,null,null,null,null,null,null,null,null,null,null,null,null,null,null,null,null,null,null,null,null,null,null,null,null,null,null,null,null,null,null,null,null,null,null,null,null,null,null,null,null,null,null,null,null,null,null,null,null,null,null,null,null,null,null,null,null,null,null,null,null,null,null,null,null,null,null,null,null,0,null,1,"RUB","-",{"$error":"#VALUE!"}]
["Наименование элемента","Категория 1 уровня","Категория 2 уровня","Категория 3 уровня","RUB","-",0,"Нет",null,null,null,null,null,null,null,null,null,null,null,null,null,null,null,null,null,null,null,null,null,null,null,null,null,null,null,null,null,null,null,null,null,null,null,null,null,null,null,null,null,null,null,null,null,null,null,null,null,null,null,null,null,null,null,null,null,null,null,null,null,null,null,null,null,null,null,null,null,null,null,null,null,null,null,null,null,null,null,null,null,null,null,null,null,null,null,null,null,null,null,null,null,null,null,null,null,null,null,null,null,null,null,null,null,null,null,null,null,null,null,null,null,null,null,null,null,null,null,null,null,null,null,null,null,null,null,null,null,null,null,null,null,null,null,null,null,null,null,null,null,null,null,null,null,null,null,null,null,null,null,null,null,null,null,null,null,null,null,null,null,null,null,null,null,null,null,null,null,null,null,null,null,null,null,null,null,null,null,null,null,null,null,null,null,null,null,null,null,null,null,null,null,null,null,null,null,null,null,null,null,null,0,null,1,"RUB","-",{"$error":"#VALUE!"}]
["Наименование элемента","Категория 1 уровня","Категория 2 уровня","Категория 3 уровня","RUB","-",0,"Нет",null,null,null,null,null,null,null,null,null,null,null,null,null,null,null,null,null,null,null,null,null,null,null,null,null,null,null,null,null,null,null,null,null,null,null,null,null,null,null,null,null,null,null,null,null,null,null,null,null,null,null,null,null,null,null,null,null,null,null,null,null,null,null,null,null,null,null,null,null,null,null,null,null,null,null,null,null,null,null,null,null,null,null,null,null,null,null,null,null,null,null,null,null,null,null,null,null,null,null,null,null,null,null,null,null,null,null,null,null,null,null,null,null,null,null,null,null,null,null,null,null,null,null,null,null,null,null,null,null,null,null,null,null,null,null,null,null,null,null,null,null,null,null,null,null,null,null,null,null,null,null,null,null,null,null,null,null,null,null,null,null,null,null,null,null,null,null,null,null,null,null,null,null,null,null,null,null,null,null,null,null,null,null,null,null,null,null,null,null,null,null,null,null,null,null,null,null,null,null,null,null,null,0,null,1,"RUB","-",{"$error":"#VALUE!"}]
["Наименование элемента","Категория 1 уровня","Категория 2 уровня","Категория 3 уровня","RUB","-",0,"Нет",null,null,null,null,null,null,null,null,null,null,null,null,null,null,null,null,null,null,null,null,null,null,null,null,null,null,null,null,null,null,null,null,null,null,null,null,null,null,null,null,null,null,null,null,null,null,null,null,null,null,null,null,null,null,null,null,null,null,null,null,null,null,null,null,null,null,null,null,null,null,null,null,null,null,null,null,null,null,null,null,null,null,null,null,null,null,null,null,null,null,null,null,null,null,null,null,null,null,null,null,null,null,null,null,null,null,null,null,null,null,null,null,null,null,null,null,null,null,null,null,null,null,null,null,null,null,null,null,null,null,null,null,null,null,null,null,null,null,null,null,null,null,null,null,null,null,null,null,null,null,null,null,null,null,null,null,null,null,null,null,null,null,null,null,null,null,null,null,null,null,null,null,null,null,null,null,null,null,null,null,null,null,null,null,null,null,null,null,null,null,null,null,null,null,null,null,null,null,null,null,null,null,0,null,1,"RUB","-",{"$error":"#VALUE!"}]
["Наименование элемента","Категория 1 уровня","Категория 2 уровня","Категория 3 уровня","RUB","-",0,"Нет",null,null,null,null,null,null,null,null,null,null,null,null,null,null,null,null,null,null,null,null,null,null,null,null,null,null,null,null,null,null,null,null,null,null,null,null,null,null,null,null,null,null,null,null,null,null,null,null,null,null,null,null,null,null,null,null,null,null,null,null,null,null,null,null,null,null,null,null,null,null,null,null,null,null,null,null,null,null,null,null,null,null,null,null,null,null,null,null,null,null,null,null,null,null,null,null,null,null,null,null,null,null,null,null,null,null,null,null,null,null,null,null,null,null,null,null,null,null,null,null,null,null,null,null,null,null,null,null,null,null,null,null,null,null,null,null,null,null,null,null,null,null,null,null,null,null,null,null,null,null,null,null,null,null,null,null,null,null,null,null,null,null,null,null,null,null,null,null,null,null,null,null,null,null,null,null,null,null,null,null,null,null,null,null,null,null,null,null,null,null,null,null,null,null,null,null,null,null,null,null,null,null,0,null,1,"RUB","-",{"$error":"#VALUE!"}]
["Наименование элемента","Категория 1 уровня","Категория 2 уровня","Категория 3 уровня","RUB","-",0,"Нет",null,null,null,null,null,null,null,null,null,null,null,null,null,null,null,null,null,null,null,null,null,null,null,null,null,null,null,null,null,null,null,null,null,null,null,null,null,null,null,null,null,null,null,null,null,null,null,null,null,null,null,null,null,null,null,null,null,null,null,null,null,null,null,null,null,null,null,null,null,null,null,null,null,null,null,null,null,null,null,null,null,null,null,null,null,null,null,null,null,null,null,null,null,null,null,null,null,null,null,null,null,null,null,null,null,null,null,null,null,null,null,null,null,null,null,null,null,null,null,null,null,null,null,null,null,null,null,null,null,null,null,null,null,null,null,null,null,null,null,null,null,null,null,null,null,null,null,null,null,null,null,null,null,null,null,null,null,null,null,null,null,null,null,null,null,null,null,null,null,null,null,null,null,null,null,null,null,null,null,null,null,null,null,null,null,null,null,null,null,null,null,null,null,null,null,null,null,null,null,null,null,null,0,null,1,"RUB","-",{"$error":"#VALUE!"}]
["Наименование элемента","Категория 1 уровня","Категория 2 уровня","Категория 3 уровня","RUB","-",0,"Нет",null,null,null,null,null,null,null,null,null,null,null,null,null,null,null,null,null,null,null,null,null,null,null,null,null,null,null,null,null,null,null,null,null,null,null,null,null,null,null,null,null,null,null,null,null,null,null,null,null,null,null,null,null,null,null,null,null,null,null,null,null,null,null,null,null,null,null,null,null,null,null,null,null,null,null,null,null,null,null,null,null,null,null,null,null,null,null,null,null,null,null,null,null,null,null,null,null,null,null,null,null,null,null,null,null,null,null,null,null,null,null,null,null,null,null,null,null,null,null,null,null,null,null,null,null,null,null,null,null,null,null,null,null,null,null,null,null,null,null,null,null,null,null,null,null,null,null,null,null,null,null,null,null,null,null,null,null,null,null,null,null,null,null,null,null,null,null,null,null,null,null,null,null,null,null,null,null,null,null,null,null,null,null,null,null,null,null,null,null,null,null,null,null,null,null,null,null,null,null,null,null,null,0,null,1,"RUB","-",{"$error":"#VALUE!"}]
["Наименование элемента","Категория 1 уровня","Категория 2 уровня","Категория 3 уровня","RUB","-",0,"Нет",null,null,null,null,null,null,null,null,null,null,null,null,null,null,null,null,null,null,null,null,null,null,null,null,null,null,null,null,null,null,null,null,null,null,null,null,null,null,null,null,null,null,null,null,null,null,null,null,null,null,null,null,null,null,null,null,null,null,null,null,null,null,null,null,null,null,null,null,null,null,null,null,null,null,null,null,null,null,null,null,null,null,null,null,null,null,null,null,null,null,null,null,null,null,null,null,null,null,null,null,null,null,null,null,null,null,null,null,null,null,null,null,null,null,null,null,null,null,null,null,null,null,null,null,null,null,null,null,null,null,null,null,null,null,null,null,null,null,null,null,null,null,null,null,null,null,null,null,null,null,null,null,null,null,null,null,null,null,null,null,null,null,null,null,null,null,null,null,null,null,null,null,null,null,null,null,null,null,null,null,null,null,null,null,null,null,null,null,null,null,null,null,null,null,null,null,null,null,null,null,null,null,0,null,1,"RUB","-",{"$error":"#VALUE!"}]
["Наименование элемента","Категория 1 уровня","Категория 2 уровня","Категория 3 уровня","RUB",389405,0,"Нет",null,null,null,null,null,null,null,null,null,null,null,null,null,null,null,null,null,null,null,null,null,null,null,null,null,null,null,null,null,null,null,null,null,null,null,null,null,null,null,null,null,null,null,null,null,null,null,null,null,null,null,null,null,null,null,null,null,null,null,null,null,null,null,null,null,null,null,null,null,null,null,null,null,null,null,null,null,null,null,null,null,null,null,null,null,null,null,null,null,null,null,null,null,null,null,null,null,null,null,null,null,null,null,null,null,null,null,null,null,null,null,null,null,null,null,null,null,null,null,null,null,null,null,null,null,null,null,null,null,null,null,null,null,null,null,null,null,null,null,null,null,null,null,null,null,null,null,null,null,null,null,null,null,null,null,null,null,null,null,null,null,null,null,null,null,null,null,null,null,null,null,null,null,null,null,null,null,null,null,null,null,null,null,null,null,null,null,null,null,null,null,null,null,null,null,null,null,null,null,null,null,null,409900,null,0.95,"RUB",389405,0]
["Наименование элемента","Категория 1 уровня","Категория 2 уровня","Категория 3 уровня","RUB",479000,0,"Нет",null,null,null,null,null,null,null,null,null,null,null,null,null,null,null,null,null,null,null,null,null,null,null,null,null,null,null,null,null,null,null,null,null,null,null,null,null,null,null,null,null,null,null,null,null,null,null,null,null,null,null,null,null,null,null,null,null,null,null,null,null,null,null,null,null,null,null,null,null,null,null,null,null,null,null,null,null,null,null,null,null,null,null,null,null,null,null,null,null,null,null,null,null,null,null,null,null,null,null,null,null,null,null,null,null,null,null,null,null,null,null,null,null,null,null,null,null,null,null,null,null,null,null,null,null,null,null,null,null,null,null,null,null,null,null,null,null,null,null,null,null,null,null,null,null,null,null,null,null,null,null,null,null,null,null,null,null,null,null,null,null,null,null,null,null,null,null,null,null,null,null,null,null,null,null,null,null,null,null,null,null,null,null,null,null,null,null,null,null,null,null,null,null,null,null,null,null,null,null,null,null,null,479000,null,1,"RUB",479000,0]
["Наименование элемента","Категория 1 уровня","Категория 2 уровня","Категория 3 уровня","RUB",470000,0,"Нет",null,null,null,null,null,null,null,null,null,null,null,null,null,null,null,null,null,null,null,null,null,null,null,null,null,null,null,null,null,null,null,null,null,null,null,null,null,null,null,null,null,null,null,null,null,null,null,null,null,null,null,null,null,null,null,null,null,null,null,null,null,null,null,null,null,null,null,null,null,null,null,null,null,null,null,null,null,null,null,null,null,null,null,null,null,null,null,null,null,null,null,null,null,null,null,null,null,null,null,null,null,null,null,null,null,null,null,null,null,null,null,null,null,null,null,null,null,null,null,null,null,null,null,null,null,null,null,null,null,null,null,null,null,null,null,null,null,null,null,null,null,null,null,null,null,null,null,null,null,null,null,null,null,null,null,null,null,null,null,null,null,null,null,null,null,null,null,null,null,null,null,null,null,null,null,null,null,null,null,null,null,null,null,null,null,null,null,null,null,null,null,null,null,null,null,null,null,null,null,null,null,null,470000,null,1,"RUB",470000,0]
["Наименование элемента","Категория 1 уровня","Категория 2 уровня","Категория 3 уровня","RUB",560000,0,"Нет",null,null,null,null,null,null,null,null,null,null,null,null,null,null,null,null,null,null,null,null,null,null,null,null,null,null,null,null,null,null,null,null,null,null,null,null,null,null,null,null,null,null,null,null,null,null,null,null,null,null,null,null,null,null,null,null,null,null,null,null,null,null,null,null,null,null,null,null,null,null,null,null,null,null,null,null,null,null,null,null,null,null,null,null,null,null,null,null,null,null,null,null,null,null,null,null,null,null,null,null,null,null,null,null,null,null,null,null,null,null,null,null,null,null,null,null,null,null,null,null,null,null,null,null,null,null,null,null,null,null,null,null,null,null,null,null,null,null,null,null,null,null,null,null,null,null,null,null,null,null,null,null,null,null,null,null,null,null,null,null,null,null,null,null,null,null,null,null,null,null,null,null,null,null,null,null,null,null,null,null,null,null,null,null,null,null,null,null,null,null,null,null,null,null,null,null,null,null,null,null,null,null,560000,null,1,"RUB",560000,0]
["Наименование элемента","Категория 1 уровня","Категория 2 уровня","Категория 3 уровня","RUB","-",0,null,null,null,null,null,null,null,null,null,null,null,null,null,null,null,null,null,null,null,null,null,null,null,null,null,null,null,null,null,null,null,null,null,null,null,null,null,null,null,null,null,null,null,null,null,null,null,null,null,null,null,null,null,null,null,null,null,null,null,null,null,null,null,null,null,null,null,null,null,null,null,null,null,null,null,null,null,null,null,null,null,null,null,null,null,null,null,null,null,null,null,null,null,null,null,null,null,null,null,null,null,null,null,null,null,null,null,null,null,null,null,null,null,null,null,null,null,null,null,null,null,null,null,null,null,null,null,null,null,null,null,null,null,null,null,null,null,null,null,null,null,null,null,null,null,null,null,null,null,null,null,null,null,null,null,null,null,null,null,null,null,null,null,null,null,null,null,null,null,null,null,null,null,null,null,null,null,null,null,null,null,null,null,null,null,null,null,null,null,null,null,null,null,null,null,null,null,null,null,null,null,null,null,0,null,1,"RUB","-",{"$error":"#VALUE!"}]
["Наименование элемента","Категория 1 уровня","Категория 2 уровня","Категория 3 уровня","RUB","-",0,null,null,null,null,null,null,null,null,null,null,null,null,null,null,null,null,null,null,null,null,null,null,null,null,null,null,null,null,null,null,null,null,null,null,null,null,null,null,null,null,null,null,null,null,null,null,null,null,null,null,null,null,null,null,null,null,null,null,null,null,null,null,null,null,null,null,null,null,null,null,null,null,null,null,null,null,null,null,null,null,null,null,null,null,null,null,null,null,null,null,null,null,null,null,null,null,null,null,null,null,null,null,null,null,null,null,null,null,null,null,null,null,null,null,null,null,null,null,null,null,null,null,null,null,null,null,null,null,null,null,null,null,null,null,null,null,null,null,null,null,null,null,null,null,null,null,null,null,null,null,null,null,null,null,null,null,null,null,null,null,null,null,null,null,null,null,null,null,null,null,null,null,null,null,null,null,null,null,null,null,null,null,null,null,null,null,null,null,null,null,null,null,null,null,null,null,null,null,null,null,null,null,null,0,null,1,"RUB","-",{"$error":"#VALUE!"}]
["Наименование элемента","Категория 1 уровня","Категория 2 уровня","Категория 3 уровня","RUB","-",0,null,null,null,null,null,null,null,null,null,null,null,null,null,null,null,null,null,null,null,null,null,null,null,null,null,null,null,null,null,null,null,null,null,null,null,null,null,null,null,null,null,null,null,null,null,null,null,null,null,null,null,null,null,null,null,null,null,null,null,null,null,null,null,null,null,null,null,null,null,null,null,null,null,null,null,null,null,null,null,null,null,null,null,null,null,null,null,null,null,null,null,null,null,null,null,null,null,null,null,null,null,null,null,null,null,null,null,null,null,null,null,null,null,null,null,null,null,null,null,null,null,null,null,null,null,null,null,null,null,null,null,null,null,null,null,null,null,null,null,null,null,null,null,null,null,null,null,null,null,null,null,null,null,null,null,null,null,null,null,null,null,null,null,null,null,null,null,null,null,null,null,null,null,null,null,null,null,null,null,null,null,null,null,null,null,null,null,null,null,null,null,null,null,null,null,null,null,null,null,null,null,null,null,0,null,1,"RUB","-",{"$error":"#VALUE!"}]